bitfinex/quotes_ETHUSD_20250129
["timestamp","ask_amount","ask_price","bid_price","bid_amount"]
[1738161950898,3.2279,3098.0,3097.4,3.22844]
[1738161951103,3.22793,3098.0,3097.4,3.22844]
[1738161951305,0.7959,3098.2,3097.1,0.55]
[1738161951516,3.22751,3098.4,3097.7,3.22809]
[1738161951719,3.22795,3098.0,3097.3,3.22861]
[1738161952354,3.22823,3097.7,3097.1,3.2288]
[1738161952557,3.22823,3097.7,3097.1,3.22875]
[1738161952721,0.7812,3097.8,3097.1,3.22875]
[1738161952722,0.7812,3097.8,3097.3,3.22861]
[1738161953050,3.763,3098.2,3097.6,3.22824]
[1738161953248,6.99076,3098.2,3097.1,0.55]
[1738161953620,3.763,3098.2,3097.6,3.22826]
[1738161953950,0.791,3098.6,3098.2,3.22762]
[1738161954254,3.22787,3098.1,3097.5,3.22831]
[1738161954464,3.22765,3098.3,3097.6,3.22829]
[1738161954678,3.22765,3098.3,3097.7,3.22812]
[1738161954829,6.45532,3098.3,3097.7,3.22812]
[1738161955023,0.04034975,3098.2,3097.5,35.0]
[1738161955235,0.04034975,3098.2,3097.1,1.3363]
[1738161955236,3.22774,3098.2,3097.3,3.22857]
[1738161955456,3.2278,3098.1,3097.5,3.22834]
[1738161955657,0.791,3098.4,3097.8,3.22802]
[1738161955871,0.8211,3098.8,3097.7,0.55]
[1738161956060,0.8211,3098.8,3097.9,0.7863]
[1738161956247,0.8211,3098.8,3097.5,37.0]
[1738161956248,3.22726,3098.6,3097.7,3.22813]
[1738161956455,3.22753,3098.4,3097.8,3.22807]
[1738161956965,3.22775,3098.2,3097.5,35.0]
[1738161957151,3.22775,3098.2,3097.4,3.22845]
[1738161957332,3.22775,3098.2,3097.6,3.22823]
[1738161958069,3.2681018,3098.2,3097.4,3.22845]
[1738161958259,3.22789,3098.0,3097.4,3.22845]
[1738161958561,3.55455018,3098.2,3097.5,3.22835]
[1738161958764,3.22786,3098.1,3097.5,3.22835]
[1738161959082,3.22786,3098.1,3097.1,38.0]
[1738161959083,3.2281,3097.8,3097.1,38.22874]
[1738161959286,3.2281,3097.8,3096.7,3.22922]
[1738161959287,3.22869,3097.3,3096.7,3.22922]
[1738161959577,3.22923,3096.8,3096.2,2.556]
[1738161959729,3.22903,3096.9,3096.3,3.2296]
[1738161959926,3.627759,3097.3,3096.2,2.556]
[1738161960167,6.22877,3097.2,3096.5,3.22938]
[1738161960323,1.39944118,3097.4,3096.4,0.55]
[1738161960324,0.762,3097.4,3096.4,0.55]
[1738161960526,0.7647,3097.8,3097.3,3.22857]
[1738161960727,3.0,3098.0,3097.3,3.22855]
[1738161960965,3.99311,3097.5,3097.4,0.05865771]
[1738161961162,7.03347458,3097.5,3097.4,0.05865771]
[1738161961463,3.22883,3097.1,3096.4,3.22953]
[1738161961662,3.0,3097.4,3096.3,38.22964]
[1738161961663,3.99313,3097.5,3096.5,0.05747445]
[1738161961850,3.22828,3097.7,3096.7,0.7863]
[1738161962055,3.22828,3097.7,3096.9,3.22897]
[1738161962253,3.22828,3097.7,3097.1,3.22881]
[1738161962456,3.22866,3097.3,3097.2,0.05711349]
[1738161962776,3.22866,3097.3,3096.4,0.759]
[1738161962777,0.8289,3097.2,3096.4,0.759]
[1738161962946,3.22941,3096.6,3096.2,2.556]
[1738161963270,3.22966,3096.3,3096.2,2.556]
[1738161963657,3.22957,3096.4,3096.2,2.556]
[1738161963835,3.22966,3096.3,3096.2,2.556]
[1738161964040,3.723213,3096.3,3094.9,4.48734]
[1738161964244,3.98861,3095.5,3094.9,3.23104]
[1738161964480,3.98861,3095.5,3094.9,38.23104]
[1738161964841,0.7581,3095.5,3094.9,38.23104]
[1738161965143,3.23014,3095.9,3095.2,3.23074]
[1738161965491,3.23028,3095.7,3095.0,3.23097]
[1738161965800,3.23028,3095.7,3095.1,3.23082]
[1738161965935,3.23027,3095.8,3095.1,3.23082]
[1738161966264,3.2301,3095.9,3095.1,3.23082]
[1738161966474,3.23018,3095.8,3095.2,3.23074]
[1738161966845,3.22998,3096.0,3095.4,3.23053]
[1738161967186,4.00807,3096.6,3095.8,3.23011]
[1738161967336,0.7787,3096.6,3095.8,3.23008]
[1738161967536,0.7787,3096.6,3096.1,3.22986]
[1738161967771,0.7787,3096.6,3095.7,0.03229896]
[1738161967772,4.00753,3097.1,3096.3,3.22957]
[1738161968074,3.2291,3096.9,3096.4,35.0]
[1738161968275,0.7787,3097.1,3096.6,3.22928]
[1738161968577,3.22884,3097.1,3096.4,3.22947]
[1738161968952,0.8329,3097.4,3096.5,35.0]
[1738161968953,3.22915,3096.8,3096.5,35.0]
[1738161969296,3.22934,3096.6,3095.9,0.7684]
[1738161969460,3.22951,3096.5,3095.8,3.23017]
[1738161969891,0.04037498,3096.4,3095.6,7.01663]
[1738161970194,3.22947,3096.5,3095.6,0.7863]
[1738161970393,3.22998,3096.0,3095.5,3.6984]
[1738161970683,0.04037748,3095.9,3095.5,0.468]
[1738161970976,0.84158403,3096.0,3095.0,3.23094]
[1738161971162,3.23036,3095.7,3095.0,38.23094]
[1738161971364,3.8012,3096.0,3095.0,35.0]
[1738161971554,3.93018416,3095.9,3095.0,35.0]
[1738161971759,3.2307,3095.4,3094.8,3.23113]
[1738161971954,3.2307,3095.4,3094.8,6.46226]
[1738161972282,3.8012,3096.0,3095.1,3.23091]
[1738161972484,3.23035,3095.7,3094.9,3.23111]
[1738161972773,3.23062,3095.4,3094.9,3.23111]
[1738161972974,3.23062,3095.4,3094.8,35.0]
[1738161972975,3.23082,3095.2,3094.8,35.0]
[1738161973421,3.23082,3095.2,3094.1,3.98558]
[1738161973422,3.23134,3094.7,3094.1,3.98558]
[1738161973873,3.23112,3094.9,3094.1,38.98558]
[1738161974076,3.23109,3095.0,3094.4,3.23162]
[1738161974274,3.23109,3095.0,3094.3,3.23174]
[1738161974497,3.2317,3094.4,3093.6,0.7863]
[1738161974792,0.7767,3094.5,3093.2,2.558]
[1738161974793,3.23228,3093.8,3093.3,3.23273]
[1738161974941,3.23228,3093.8,3093.3,38.23273]
[1738161975140,3.23206,3094.1,3093.3,38.23273]
[1738161975141,0.04038814,3094.0,3093.3,38.23273]
[1738161975340,0.04038814,3094.4,3093.3,38.23273]
[1738161975577,3.23219,3093.9,3093.3,3.23273]
[1738161975888,3.23196,3094.1,3093.4,0.05876612]
[1738161976075,4.00831,3094.5,3093.9,3.23215]
[1738161976237,0.7767,3094.5,3094.0,0.05841606]
[1738161976439,0.7644,3095.0,3093.8,0.5575]
[1738161976636,0.7644,3095.0,3094.3,3.23166]
[1738161976841,0.7644,3095.0,3094.6,3.23139]
[1738161977192,0.8079,3095.4,3094.8,3.23122]
[1738161977358,0.8079,3095.4,3094.8,3.23115]
[1738161977563,3.23079,3095.3,3094.9,0.05868479]
[1738161977765,3.2309,3095.2,3094.9,0.05868479]
[1738161977978,3.957859,3095.2,3094.6,3.2314]
[1738161978267,0.726959,3095.2,3094.5,0.474]
[1738161978471,0.8079,3095.4,3094.5,0.474]
[1738161978472,3.23099,3095.1,3094.5,0.474]
[1738161978660,0.8079,3095.4,3094.6,0.0586589]
[1738161978661,4.03854,3095.4,3094.6,0.0586589]
[1738161978861,4.05623,3094.7,3094.6,0.0586589]
[1738161979056,3.23143,3094.6,3094.5,0.474]
[1738161979282,6.23143,3094.6,3094.5,0.53271721]
[1738161979491,7.260195,3094.6,3094.5,0.474]
[1738161979693,7.260195,3094.6,3094.5,0.53271721]
[1738161980059,7.260195,3094.6,3094.5,0.474]
[1738161980256,7.260195,3094.6,3094.5,0.53271721]
[1738161980557,7.260195,3094.6,3094.5,0.474]
[1738161980754,0.8249,3094.7,3094.5,0.474]
[1738161981168,7.05631,3094.7,3094.6,0.0586589]
[1738161981499,3.23182,3094.3,3093.6,3.23239]
[1738161981693,3.2316,3094.5,3093.6,3.23239]
[1738161981897,3.23164,3094.4,3093.7,0.05918383]
[1738161982085,4.05627,3094.7,3093.9,3.23213]
[1738161982286,3.23155,3094.5,3094.0,0.05900882]
[1738161982488,0.8249,3094.7,3094.3,3.23174]
[1738161982706,0.8249,3094.7,3094.2,3.23183]
[1738161983019,0.8249,3094.7,3094.4,0.05877552]
[1738161983218,3.86545842,3095.1,3094.4,0.05877552]
[1738161983219,1.43761842,3095.1,3094.4,3.23163]
[1738161983426,3.23143,3094.6,3094.5,0.05871721]
[1738161983567,0.04038814,3094.6,3094.5,0.05871721]
[1738161983769,3.23164,3094.5,3093.9,3.23212]
[1738161983967,3.23136,3094.7,3093.7,1.2576]
[1738161984167,1.43761842,3095.1,3093.9,3.23216]
[1738161984168,0.8031,3095.1,3093.9,3.23216]
[1738161984367,4.03364,3095.5,3094.7,3.2313]
[1738161984621,4.03364,3095.5,3094.1,4.0165]
[1738161984622,3.2382,3095.3,3094.1,4.0165]
[1738161984826,3.2382,3095.3,3093.9,0.05910247]
[1738161984827,3.23135,3094.7,3093.9,0.05910247]
[1738161985032,0.04038814,3094.6,3093.9,0.05910247]
[1738161985329,0.7868,3095.2,3094.8,3.2312]
[1738161985466,3.23055,3095.5,3095.0,3.231]
[1738161985664,0.8114,3095.7,3095.0,3.231]
[1738161985868,4.24109903,3096.4,3095.6,3.23039]
[1738161985869,3.22983,3096.2,3095.6,3.23039]
[1738161986070,0.2,3097.1,3095.3,0.7525]
[1738161986071,0.7727,3096.7,3095.3,0.7525]
[1738161986333,0.7727,3096.7,3095.9,3.22999]
[1738161986334,3.22936,3096.6,3095.9,3.22999]
[1738161986624,0.04037242,3096.6,3095.7,0.472]
[1738161986767,0.7727,3096.7,3096.1,3.22979]
[1738161986972,3.22922,3096.8,3095.9,4.01632]
[1738161987269,3.22921,3096.8,3096.1,3.2298]
[1738161987469,3.22894,3097.0,3096.2,3.22974]
[1738161987670,0.778,3097.2,3096.8,3.22906]
[1738161987928,4.04422,3097.7,3096.8,3.22906]
[1738161988224,3.2292,3096.8,3095.9,0.7863]
[1738161988369,3.22973,3096.3,3095.7,3.23027]
[1738161988577,3.22973,3096.3,3095.5,3.23049]
[1738161988929,3.22973,3096.3,3095.6,3.23035]
[1738161989130,0.04037523,3096.2,3095.6,3.23035]
[1738161989437,0.04037525,3096.7,3095.4,0.472]
[1738161989576,0.7753,3096.8,3096.2,3.22976]
[1738161989775,0.7753,3096.8,3096.3,3.22964]
[1738161990029,3.22908,3096.9,3096.2,3.22967]
[1738161990330,3.22915,3096.8,3096.2,3.22967]
[1738161990476,3.22941,3096.6,3095.7,3.23023]
[1738161990676,3.22965,3096.4,3095.7,3.23027]
[1738161990893,0.7562,3096.6,3095.8,0.05514977]
[1738161991089,3.22974,3096.3,3095.8,0.05514977]
[1738161991297,3.27015982,3096.2,3095.6,3.70038]
[1738161991525,0.32701598,3096.2,3095.7,3.23027]
[1738161991677,0.32701598,3096.2,3095.8,3.23011]
[1738161991878,3.0,3096.4,3095.9,0.05509151]
[1738161991879,3.22967,3096.3,3095.9,0.05509151]
[1738161992135,3.22967,3096.3,3095.7,3.23027]
[1738161992352,3.22986,3096.1,3096.0,0.05503325]
[1738161992498,0.0075,3096.4,3095.2,3.23076]
[1738161992695,3.23008,3095.9,3095.3,3.28607113]
[1738161992935,3.23008,3095.9,3095.3,0.05544113]
[1738161993146,3.23018,3095.8,3095.3,0.05544113]
[1738161993283,3.23008,3095.9,3095.3,3.28613113]
[1738161993635,3.23022,3095.8,3095.3,0.05544113]
[1738161993783,3.23022,3095.8,3095.3,3.28614113]
[1738161994130,3.23022,3095.8,3095.3,0.05544113]
[1738161994280,3.23039,3095.6,3095.3,0.05544113]
[1738161994485,3.23022,3095.8,3094.6,3.0]
[1738161994486,0.04038329,3095.5,3094.7,0.467]
[1738161994683,0.04038329,3095.5,3094.8,0.05573259]
[1738161994684,3.2306,3095.4,3094.8,0.05573259]
[1738161994931,3.2306,3095.4,3094.4,3.2316]
[1738161994932,3.23087,3095.2,3094.4,3.2316]
[1738161995129,3.0,3095.3,3094.8,3.23121]
[1738161995342,3.23081,3095.2,3094.6,3.23139]
[1738161995482,3.23081,3095.2,3094.9,0.05567429]
[1738161995682,3.23093,3095.1,3094.6,3.23139]
[1738161995903,3.62306,3095.3,3094.7,0.0557909]
[1738161996147,3.23084,3095.2,3094.2,2.0]
[1738161996358,3.23084,3095.2,3094.8,0.05573259]
[1738161996578,3.0,3095.3,3094.7,3.2313]
[1738161996761,3.0,3095.3,3094.9,0.05567429]
[1738161996940,3.0,3095.3,3094.8,0.05573259]
[1738161997142,3.23087,3095.2,3095.0,0.055616]
[1738161997445,4.176911,3095.3,3094.4,3.23156]
[1738161997446,3.23091,3095.1,3094.4,3.23156]
[1738161997650,3.23091,3095.1,3094.3,5.79066]
[1738161997651,0.04038814,3095.0,3094.3,5.79068]
[1738161997842,0.81418814,3095.0,3094.3,2.559]
[1738161998047,3.7509,3094.8,3093.4,3.2326]
[1738161998288,3.23162,3094.5,3093.8,3.23222]
[1738161998443,3.64684814,3094.7,3094.0,3.23206]
[1738161998444,0.37509,3094.7,3094.0,3.23206]
[1738161998642,3.23099,3095.1,3094.4,3.23158]
[1738161998854,3.23108,3095.0,3094.4,3.23158]
[1738161999167,0.8276,3095.2,3093.9,4.01841]
[1738161999168,3.2313,3094.8,3093.9,4.01841]
[1738161999374,0.04038814,3094.7,3093.3,0.7863]
[1738161999593,0.04038814,3094.7,3093.5,3.23248]
[1738161999594,3.23193,3094.2,3093.5,3.23248]
[1738161999739,3.23223,3093.9,3093.3,0.7863]
[1738161999944,3.23223,3093.9,3093.3,4.01906]
[1738162000145,4.05942,3094.3,3093.7,3.2323]
[1738162000346,1.78965223,3094.8,3093.4,2.0]
[1738162000579,4.0402,3094.8,3093.5,3.23258]
[1738162000769,4.0402,3094.8,3093.9,2.0]
[1738162000770,0.8089,3094.8,3093.9,2.0]
[1738162000966,4.05561,3095.2,3094.6,3.23142]
[1738162001170,4.05521,3095.6,3094.8,3.23113]
[1738162001464,3.23076,3095.3,3094.7,3.23132]
[1738162001783,3.23083,3095.2,3094.7,3.23132]
[1738162002256,0.65044957,3095.3,3094.7,3.23132]
[1738162002257,3.88115957,3095.3,3094.7,3.23132]
[1738162002460,3.88115957,3095.3,3094.7,3.23131]
[1738162002461,3.88124957,3095.3,3094.7,3.23131]
[1738162003168,4.0552,3095.6,3094.1,6.23189]
[1738162003389,0.84985986,3096.7,3095.2,3.23077]
[1738162003390,3.23016,3095.9,3095.2,3.23077]
[1738162003617,0.8006,3096.0,3095.4,3.23049]
[1738162003891,0.0478817,3095.9,3094.9,0.459]
[1738162004058,3.23058,3095.5,3094.9,0.459]
[1738162004470,0.04038814,3095.8,3094.5,4.00925]
[1738162004471,3.23064,3095.4,3094.5,4.00925]
[1738162004677,3.23086,3095.2,3094.4,3.69062]
[1738162005194,3.04038814,3095.1,3094.4,0.459]
[1738162005362,3.23153,3094.6,3094.4,0.459]
[1738162005558,6.46259,3094.8,3094.4,0.459]
[1738162005759,3.23143,3094.6,3094.4,0.459]
[1738162005953,3.23143,3094.6,3094.5,0.05711456]
[1738162006167,0.04038814,3094.7,3094.5,0.05711456]
[1738162006396,3.27165814,3094.8,3094.5,0.05711456]
[1738162006693,3.23143,3094.6,3094.5,0.05711456]
[1738162006897,0.8139,3094.6,3093.9,3.23207]
[1738162007098,3.23161,3094.5,3094.0,3.28945617]
[1738162007323,0.7528,3095.1,3094.1,0.03231837]
[1738162007597,3.98303,3095.8,3095.2,3.2308]
[1738162007812,0.7528,3095.8,3094.7,3.23127]
[1738162008104,3.0,3095.5,3094.9,3.23107]
[1738162008277,3.0,3095.5,3095.1,3.2309]
[1738162008477,6.23051,3095.5,3095.2,0.05670646]
[1738162008657,3.98298,3095.8,3095.1,3.23085]
[1738162008860,0.04038278,3095.7,3095.2,0.05670646]
[1738162009095,3.23045,3095.6,3095.0,3.23099]
[1738162009310,3.23045,3095.6,3095.1,3.28765475]
[1738162009660,3.2305,3095.5,3095.1,0.05676475]
[1738162009896,3.23072,3095.3,3094.7,3.23128]
[1738162010092,3.2305,3095.5,3094.8,0.05693964]
[1738162010306,0.7528,3095.8,3094.8,0.08924902]
[1738162010471,3.2303,3095.7,3095.1,3.23083]
[1738162010671,3.7528,3095.8,3095.4,3.23056]
[1738162010876,3.0,3095.8,3095.4,3.23056]
[1738162011275,3.0,3095.8,3095.2,3.23074]
[1738162011528,0.8067,3096.2,3095.6,3.23028]
[1738162011668,4.03652,3096.2,3095.6,3.23028]
[1738162012024,3.27033656,3096.1,3095.7,0.05627057]
[1738162012336,0.8067,3096.2,3095.6,3.23033]
[1738162012479,4.03647,3096.2,3095.8,0.0562123]
[1738162012812,4.03647,3096.2,3095.6,6.46065]
[1738162012813,5.12877966,3096.2,3095.6,6.46065]
[1738162013015,5.12877966,3096.2,3095.9,0.05615404]
[1738162013167,5.12877966,3096.2,3095.7,3.23027]
[1738162013377,0.65701662,3096.4,3096.0,0.05412022]
[1738162013566,0.8116,3096.6,3096.0,0.05412022]
[1738162013567,0.8116,3096.6,3096.2,3.22967]
[1738162013772,0.8116,3096.6,3095.6,5.23035]
[1738162013773,0.8116,3096.6,3095.2,2.0]
[1738162014006,0.65637027,3097.0,3096.3,0.05166855]
[1738162014007,7.04865,3096.4,3096.3,0.05166855]
[1738162014171,3.23035,3095.7,3095.0,3.23094]
[1738162014370,3.22997,3096.0,3095.2,3.23072]
[1738162014669,3.23024,3095.8,3095.3,0.05212689]
[1738162014970,5.49715701,3096.4,3095.3,0.05212689]
[1738162014971,3.22989,3096.1,3095.5,3.2304]
[1738162015198,3.2298,3096.2,3095.5,3.2304]
[1738162015427,4.04118,3096.4,3095.7,3.23025]
[1738162015771,3.22979,3096.2,3095.8,0.05193779]
[1738162015972,4.05907,3095.9,3095.8,0.05193779]
[1738162016278,3.2311,3095.0,3094.5,0.7695]
[1738162016477,3.2311,3095.0,3094.6,0.05260933]
[1738162017274,4.05982,3095.2,3094.6,0.05260933]
[1738162017475,3.23096,3095.1,3094.6,3.28403933]
[1738162018288,3.0,3095.8,3094.8,3.23114]
[1738162018487,3.23079,3095.3,3094.9,0.05243442]
[1738162018709,3.23079,3095.3,3094.7,3.23132]
[1738162019015,3.23079,3095.3,3094.8,3.28369272]
[1738162019513,4.24109903,3096.1,3094.8,3.28369272]
[1738162019514,0.78,3096.3,3095.2,0.7863]
[1738162019699,3.23023,3095.8,3095.2,4.01705]
[1738162020020,3.22988,3096.1,3095.6,3.23037]
[1738162020202,0.93143477,3096.6,3095.4,0.5575]
[1738162020401,3.2295,3096.5,3095.9,3.23007]
[1738162020601,3.68596449,3096.5,3095.8,0.7661]
[1738162020802,0.93143477,3096.6,3096.0,0.05179338]
[1738162021009,0.16823477,3096.6,3096.3,0.55]
[1738162021205,0.16823477,3096.6,3096.5,3.22945]
[1738162021515,0.16823477,3096.6,3096.5,3.28095214]
[1738162021716,3.22868,3097.3,3096.6,3.22927]
[1738162022023,3.22913,3096.8,3096.7,0.05138568]
[1738162022181,3.22893,3097.0,3096.7,0.05138568]
[1738162022376,3.22893,3097.0,3096.1,1.2282]
[1738162022377,3.22924,3096.8,3096.1,4.45802]
[1738162022584,4.00853,3096.9,3096.8,0.05132745]
[1738162022894,4.00853,3096.9,3095.8,3.23013]
[1738162022895,3.22968,3096.3,3095.8,3.23013]
[1738162023099,3.22968,3096.3,3095.9,0.05185164]
[1738162023646,3.875595,3096.3,3095.5,3.23041]
[1738162023828,3.22994,3096.1,3096.0,0.05179338]
[1738162024012,3.22994,3096.1,3095.3,3.68364]
[1738162024218,3.22998,3096.0,3095.4,3.23053]
[1738162024416,0.7701,3096.2,3095.4,3.23053]
[1738162024417,3.23014,3095.9,3095.4,0.05214298]
[1738162024584,3.23039,3095.6,3095.4,0.05214298]
[1738162024785,3.2307,3095.3,3095.0,0.453]
[1738162024985,3.23044,3095.6,3095.0,0.453]
[1738162025181,3.23052,3095.5,3095.0,0.453]
[1738162025387,3.23033,3095.7,3095.1,3.23083]
[1738162025608,3.2304,3095.6,3095.0,4.47027]
[1738162025895,0.727443,3095.6,3094.9,3.23109]
[1738162026087,0.8146,3096.2,3095.0,0.5575]
[1738162026324,3.22968,3096.3,3095.6,3.23037]
[1738162026638,3.2293,3096.7,3095.9,0.7569]
[1738162026799,6.45819,3096.9,3096.2,3.22971]
[1738162026999,3.22908,3096.9,3096.2,3.22966]
[1738162027409,3.22914,3096.8,3096.0,3.22992]
[1738162027624,3.22914,3096.8,3096.2,3.22973]
[1738162027823,3.22914,3096.8,3096.0,3.22992]
[1738162027824,3.22927,3096.7,3096.0,3.22992]
[1738162028107,3.22905,3096.9,3096.3,3.22958]
[1738162028795,3.22931,3096.7,3095.9,3.98692]
[1738162029183,3.22931,3096.7,3096.1,3.22978]
[1738162029382,3.22931,3096.7,3095.9,0.7569]
[1738162029383,3.22955,3096.4,3095.9,0.7569]
[1738162029588,3.22988,3096.1,3095.5,3.99623]
[1738162029900,6.45944,3096.3,3095.5,3.2304]
[1738162030109,3.23015,3095.9,3095.1,0.7658]
[1738162030422,3.23078,3095.3,3094.9,2.559]
[1738162030596,0.7549,3095.6,3095.1,3.23085]
[1738162030798,3.23034,3095.7,3095.1,3.23085]
[1738162030995,0.8102,3096.4,3095.5,3.98131]
[1738162031186,3.22974,3096.3,3095.5,0.7509]
[1738162031385,3.2301,3095.9,3095.3,3.23068]
[1738162031621,3.2302,3095.8,3095.3,3.23068]
[1738162032522,3.23055,3095.5,3094.9,5.79008]
[1738162032822,3.23071,3095.3,3094.9,2.559]
[1738162033224,0.04038532,3095.2,3094.9,2.559]
[1738162033386,6.23042,3095.6,3095.0,3.23094]
[1738162033586,3.23053,3095.5,3094.9,5.79006]
[1738162034405,3.23031,3095.7,3094.9,5.79006]
[1738162034604,3.23033,3095.7,3095.2,4.01706]
[1738162034788,3.23042,3095.6,3095.0,3.23101]
[1738162034984,3.23088,3095.2,3094.9,2.559]
[1738162035628,3.23095,3095.1,3094.9,2.559]
[1738162035846,3.23101,3095.0,3094.9,2.559]
[1738162037103,3.23101,3095.0,3094.0,0.7863]
[1738162037104,0.722239,3095.0,3094.0,0.7863]
[1738162037321,3.2316,3094.5,3094.0,0.7863]
[1738162037541,3.23133,3094.7,3094.0,0.7863]
[1738162037542,3.2313,3094.8,3094.2,3.23176]
[1738162037744,3.2314,3094.7,3094.1,3.23194]
[1738162037941,3.2313,3094.8,3094.1,3.23189]
[1738162038096,3.23191,3094.2,3093.7,0.45]
[1738162038297,0.04038814,3094.1,3093.1,1.2212]
[1738162038538,0.04038814,3094.1,3093.3,3.23269]
[1738162038715,3.232,3094.1,3093.4,3.23259]
[1738162039309,3.23214,3094.0,3093.4,3.23259]
[1738162039857,3.23217,3093.9,3093.2,3.2328]
[1738162039998,3.23241,3093.7,3093.1,0.7682]
[1738162040415,3.23241,3093.7,3093.0,3.23304]
[1738162040416,3.23257,3093.6,3093.0,3.23304]
[1738162040619,3.23241,3093.7,3093.0,3.23303]
[1738162040832,3.23249,3093.6,3093.0,3.23303]
[1738162041150,4.0622,3094.5,3093.8,3.23218]
[1738162041300,3.23166,3094.4,3093.5,4.01883]
[1738162041500,3.0,3094.3,3093.5,4.01883]
[1738162041937,0.8306,3094.5,3093.9,3.23216]
[1738162042141,7.47211903,3095.0,3094.2,3.23184]
[1738162042142,3.23125,3094.8,3094.2,3.23184]
[1738162042343,7.47170903,3095.4,3094.1,0.7863]
[1738162042344,3.23083,3095.2,3094.6,3.23141]
[1738162042563,3.23048,3095.6,3095.1,3.23089]
[1738162042859,0.7641,3095.8,3094.9,3.23107]
[1738162042998,0.7641,3095.8,3094.8,0.7863]
[1738162043200,3.23085,3095.2,3094.5,3.23144]
[1738162043401,3.23085,3095.2,3094.6,3.2314]
[1738162043661,3.23085,3095.2,3094.5,3.68144]
[1738162043662,3.23042,3095.6,3094.5,0.45]
[1738162043952,3.23114,3094.9,3094.5,0.45]
[1738162044234,3.23115,3094.9,3094.5,0.45]
[1738162044546,3.23143,3094.6,3094.0,0.7535]
[1738162044698,3.23198,3094.1,3093.5,0.7863]
[1738162045055,3.23218,3093.9,3093.5,0.7863]
[1738162045269,3.23243,3093.7,3093.2,0.451]
[1738162045540,6.46489,3093.7,3093.2,0.451]
[1738162045698,3.23243,3093.7,3093.2,3.68389]
[1738162045898,3.2322,3093.9,3093.2,0.451]
[1738162046100,3.2322,3093.9,3093.2,3.68389]
[1738162046464,3.23229,3093.8,3093.2,3.68382]
[1738162046811,0.8132,3094.4,3093.2,3.68387]
[1738162047156,3.23247,3093.7,3093.2,0.451]
[1738162047463,3.23211,3094.0,3093.4,3.23266]
[1738162047599,3.23206,3094.0,3093.2,3.68387]
[1738162047799,0.8132,3094.4,3093.2,3.68387]
[1738162047800,3.23223,3093.9,3093.2,3.68387]
[1738162048054,3.23223,3093.9,3093.3,3.23272]
[1738162048207,3.23245,3093.7,3093.2,0.451]
[1738162048802,0.0075,3094.3,3093.2,0.451]
[1738162048941,3.23249,3093.6,3092.9,2.559]
[1738162049139,3.2323,3093.8,3092.9,2.559]
[1738162049314,3.23265,3093.5,3092.9,5.79213]
[1738162049512,0.32323,3093.8,3092.9,2.559]
[1738162049513,3.23291,3093.2,3092.9,2.559]
[1738162050010,3.2331,3093.0,3092.9,2.559]
[1738162050625,6.2331,3093.0,3092.9,2.559]
[1738162050837,3.23347,3092.7,3092.1,3.23904]
[1738162051359,4.24109903,3093.4,3092.2,0.05600066]
[1738162051517,3.23289,3093.2,3092.4,3.23372]
[1738162051864,3.23289,3093.2,3092.5,0.0561607]
[1738162052208,3.23289,3093.2,3092.6,3.23346]
[1738162052413,3.23289,3093.2,3092.5,3.28962231]
[1738162052414,3.23307,3093.1,3092.5,3.28962231]
[1738162052619,0.646596,3093.1,3092.7,0.05442383]
[1738162052819,3.23289,3093.2,3092.6,3.28800222]
[1738162053014,0.65634193,3093.4,3092.8,0.05436545]
[1738162053266,3.23308,3093.1,3092.7,0.05442383]
[1738162053514,0.65634193,3093.4,3092.1,0.005]
[1738162053515,3.23321,3092.9,3092.8,0.05436545]
[1738162053766,3.23321,3092.9,3092.2,3.23389]
[1738162053767,3.2334,3092.8,3092.2,3.23389]
[1738162053934,3.88388781,3092.9,3092.8,0.05435148]
[1738162054131,3.23321,3092.9,3092.2,3.23389]
[1738162054464,3.23311,3093.0,3092.3,3.28844341]
[1738162054647,3.23327,3092.9,3092.3,3.28841341]
[1738162054851,0.65634193,3093.4,3092.3,3.28841341]
[1738162054852,3.23348,3092.7,3092.3,0.05464341]
[1738162055038,3.23373,3092.4,3092.3,0.05464341]
[1738162055376,3.27411814,3092.4,3092.3,0.05464341]
[1738162055677,3.23394,3092.2,3092.1,0.005]
[1738162055835,3.27432814,3092.2,3092.1,0.005]
[1738162056161,3.23394,3092.2,3092.1,0.005]
[1738162056365,3.23394,3092.2,3092.1,0.05976021]
[1738162056674,4.709007,3092.2,3092.1,0.005]
[1738162057174,0.5575,3092.1,3090.9,0.50608552]
[1738162057373,3.23519,3091.0,3090.9,0.50608552]
[1738162057575,3.27557814,3091.0,3090.9,0.50608552]
[1738162057742,3.23519,3091.0,3090.4,3.23579]
[1738162057930,3.23519,3091.0,3090.9,0.05363598]
[1738162058128,3.23551,3090.7,3090.0,3.23624]
[1738162058359,3.23551,3090.7,3089.7,2.50625017]
[1738162058360,0.727657,3091.0,3090.6,0.21388685]
[1738162058560,3.2352,3091.0,3090.6,0.21388685]
[1738162058775,3.2352,3091.0,3090.6,0.1600755]
[1738162059133,3.2352,3091.0,3090.7,0.05375289]
[1738162059761,0.8063,3091.1,3090.7,0.05375289]
[1738162059928,4.04866,3091.5,3090.8,3.23534]
[1738162060269,4.04866,3091.5,3090.9,0.05363598]
[1738162060584,3.23478,3091.4,3090.9,0.05363598]
[1738162061075,3.23443,3091.8,3091.1,3.23501]
[1738162061277,3.23426,3091.9,3091.1,3.23501]
[1738162061424,0.8139,3092.1,3091.4,3.2347]
[1738162061425,4.04801,3092.1,3091.4,3.2347]
[1738162061619,0.646767,3092.2,3091.3,0.7863]